fUST/lending_fUST_20240805
["ID","MTS","AMOUNT","RATE_DAILY","PERIOD"]
[334170750,1722807040271,-500.0,0.00013972,2]
[334170752,1722807040281,-151.0,0.00013972,2]
[334170753,1722807040290,-500.0,0.00013972,2]
[334170754,1722807040300,-810.38,0.00013972,2]
[334170756,1722807040310,-500.0,0.00013972,2]
[334170757,1722807040319,-1808.78,0.00013972,2]
[334170759,1722807040329,-411.99976102,0.00013972,2]
[334170760,1722807040338,-471.79,0.00013972,2]
[334170761,1722807040349,-861.84,0.00013972,2]
[334170763,1722807040359,-500.0,0.00013972,2]
[334170764,1722807040368,-500.0,0.00013972,2]
[334170765,1722807040378,-500.0,0.00013972,2]
[334170767,1722807040387,-500.0,0.00013972,2]
[334170768,1722807040397,-500.0,0.00013972,2]
[334170769,1722807040406,-500.0,0.00013972,2]
[334170771,1722807040415,-588.11964527,0.00013972,2]
[334170772,1722807040425,-641.77,0.00013972,2]
[334170774,1722807040435,-500.0,0.00013972,2]
[334170775,1722807040445,-166.32,0.00013972,2]
[334170776,1722807040455,-500.0,0.00013972,2]
[334170778,1722807040465,-500.0,0.00013972,2]
[334170779,1722807040475,-500.0,0.00013972,2]
[334170780,1722807040484,-500.0,0.00013972,2]
[334170782,1722807040494,-500.0,0.00013972,2]
[334170783,1722807040504,-624.11,0.00013972,2]
[334170784,1722807040514,-500.0,0.00013972,2]
[334170786,1722807040524,-500.0,0.00013972,2]
[334170787,1722807040534,-500.0,0.00013972,2]
[334170789,1722807040543,-572.52,0.00013972,2]
[334170790,1722807040554,-500.0,0.00013972,2]
[334170791,1722807040563,-1361.53,0.00013972,2]
[334170793,1722807040575,-151.0,0.00013972,2]
[334170794,1722807040585,-182.598969,0.00013972,2]
[334170796,1722807040595,-500.0,0.00013972,2]
[334170797,1722807040605,-500.0,0.00013972,2]
[334170798,1722807040615,-182.598969,0.00013972,2]
[334170800,1722807040624,-500.0,0.00013972,2]
[334170801,1722807040634,-635.26,0.00013972,2]
[334170802,1722807040644,-151.0,0.00013972,2]
[334170804,1722807040654,-151.0,0.00013972,2]
[334170805,1722807040665,-280.761465,0.00013972,2]
[334170807,1722807040675,-500.0,0.00013972,2]
[334170808,1722807040685,-151.0,0.00013972,2]
[334170809,1722807040695,-2284.99,0.00013972,2]
[334170811,1722807040705,-163.154719,0.00013972,2]
[334170812,1722807040715,-500.0,0.00013972,2]
[334170814,1722807040725,-163.154719,0.00013972,2]
[334170815,1722807040735,-30142.5828648,0.00014226,2]
[334170816,1722807040746,-2208.63,0.00014235,2]
[334170818,1722807040761,-294.851657,0.00014246,2]
[334170819,1722807040772,-294.851657,0.00014246,2]
[334170820,1722807040782,-500.0,0.00014246,2]
[334170822,1722807040793,-801.489638,0.00014246,2]
[334170823,1722807040804,-801.489638,0.00014246,2]
[334170825,1722807040814,-151.0,0.00014246,2]
[334170826,1722807040825,-151.0,0.00014246,2]
[334170827,1722807040837,-878.97,0.00014246,2]
[334170832,1722807040945,-384.3,0.00014246,2]
[334170834,1722807040958,-186.474617,0.00014246,2]
[334170835,1722807040969,-186.474617,0.00014246,2]
[334170837,1722807040980,-500.0,0.00014246,2]
[334170838,1722807040991,-500.0,0.00014246,2]
[334170839,1722807041006,-202.251228,0.00014246,2]
[334170841,1722807041017,-500.0,0.00014246,2]
[334170842,1722807041026,-810.38,0.00014246,2]
[334170844,1722807041035,-151.0,0.00014246,2]
[334170845,1722807041045,-500.0,0.00014246,2]
[334170846,1722807041055,-1808.78,0.00014246,2]
[334170848,1722807041064,-793.520155,0.00014246,2]
[334170850,1722807041074,-151.0,0.00014246,2]
[334170852,1722807041083,-793.520155,0.00014246,2]
[334170855,1722807041096,-861.84,0.00014246,2]
[334170857,1722807041106,-500.0,0.00014246,2]
[334170859,1722807041116,-500.0,0.00014246,2]
[334170860,1722807041127,-505.06,0.00014246,2]
[334170862,1722807041136,-291.21,0.00014246,2]
[334170863,1722807041147,-151.0,0.00014246,2]
[334170864,1722807041157,-151.0,0.00014246,2]
[334170866,1722807041166,-641.77,0.00014246,2]
[334170867,1722807041176,-201.39,0.00014246,2]
[334170869,1722807041185,-151.0,0.00014246,2]
[334170870,1722807041195,-151.0,0.00014246,2]
[334170871,1722807041205,-151.0,0.00014246,2]
[334170873,1722807041214,-151.0,0.00014246,2]
[334170874,1722807041223,-376.23,0.00014246,2]
[334170875,1722807041233,-500.0,0.00014246,2]
[334170877,1722807041242,-500.0,0.00014246,2]
[334170878,1722807041256,-151.0,0.00014246,2]
[334170879,1722807041265,-270.77,0.00014246,2]
[334170881,1722807041275,-151.0,0.00014246,2]
[334170882,1722807041287,-500.0,0.00014246,2]
[334170884,1722807041297,-500.0,0.00014246,2]
[334170885,1722807041307,-500.0,0.00014246,2]
[334170886,1722807041316,-500.0,0.00014246,2]
[334170888,1722807041326,-572.52,0.00014246,2]
[334170889,1722807041335,-500.0,0.00014246,2]
[334170891,1722807041346,-1361.53,0.00014246,2]
[334170892,1722807041355,-151.0,0.00014246,2]
[334170893,1722807041366,-182.598969,0.00014246,2]
[334170895,1722807041375,-500.0,0.00014246,2]
[334170896,1722807041385,-500.0,0.00014246,2]
[334170898,1722807041395,-182.598969,0.00014246,2]
[334170899,1722807041404,-500.0,0.00014246,2]
[334170900,1722807041413,-151.0,0.00014246,2]
[334170902,1722807041423,-151.0,0.00014246,2]
[334170903,1722807041433,-500.0,0.00014246,2]
[334170904,1722807041443,-151.0,0.00014246,2]
[334170906,1722807041452,-2284.99,0.00014246,2]
[334170907,1722807041463,-163.154719,0.00014246,2]
[334170908,1722807041472,-500.0,0.00014246,2]
[334170910,1722807041483,-163.154719,0.00014246,2]
[334170911,1722807041494,-567.003588,0.00014247,2]
[334170913,1722807041504,-2208.63,0.00014388,2]
[334170914,1722807041514,-30142.5828648,0.000145,2]
[334170915,1722807041524,-151.0,0.0001452,2]
[334170917,1722807041533,-151.0,0.0001452,2]
[334170918,1722807041543,-151.0,0.0001452,2]
[334170919,1722807041552,-294.851657,0.0001452,2]
[334170921,1722807041562,-294.851657,0.0001452,2]
[334170922,1722807041572,-500.0,0.0001452,2]
[334170924,1722807041582,-801.489638,0.0001452,2]
[334170925,1722807041591,-801.489638,0.0001452,2]
[334170926,1722807041600,-878.97,0.0001452,2]
[334170928,1722807041610,-186.474617,0.0001452,2]
[334170929,1722807041620,-186.474617,0.0001452,2]
[334170931,1722807041630,-500.0,0.0001452,2]
[334170932,1722807041639,-500.0,0.0001452,2]
[334170933,1722807041649,-500.0,0.0001452,2]
[334170935,1722807041658,-810.38,0.0001452,2]
[334170936,1722807041667,-500.0,0.0001452,2]
[334170937,1722807041676,-1808.78,0.0001452,2]
[334170938,1722807041685,-793.520155,0.0001452,2]
[334170939,1722807041694,-793.520155,0.0001452,2]
[334170940,1722807041704,-861.84,0.0001452,2]
[334170941,1722807041714,-385.91,0.0001452,2]
[334170942,1722807041724,-641.77,0.0001452,2]
[334170943,1722807041734,-151.0,0.0001452,2]
[334170944,1722807041749,-151.0,0.0001452,2]
[334170945,1722807041759,-192.83,0.0001452,2]
[334170946,1722807041768,-500.0,0.0001452,2]
[334170947,1722807041778,-151.0,0.0001452,2]
[334170948,1722807041789,-295.82,0.0001452,2]
[334170949,1722807041798,-500.0,0.0001452,2]
[334170950,1722807041808,-500.0,0.0001452,2]
[334170951,1722807041817,-500.0,0.0001452,2]
[334170952,1722807041829,-572.52,0.0001452,2]
[334170953,1722807041840,-500.0,0.0001452,2]
[334170954,1722807041850,-1361.53,0.0001452,2]
[334170955,1722807041860,-151.0,0.0001452,2]
[334170956,1722807041869,-182.598969,0.0001452,2]
[334170957,1722807041879,-500.0,0.0001452,2]
[334170958,1722807041888,-182.598969,0.0001452,2]
[334170959,1722807041897,-500.0,0.0001452,2]
[334170960,1722807041906,-151.0,0.0001452,2]
[334170961,1722807041916,-232.7492,0.0001452,2]
[334170963,1722807041929,-500.0,0.0001452,2]
[334170964,1722807041940,-2284.99,0.0001452,2]
[334170965,1722807041950,-163.154719,0.0001452,2]
[334170967,1722807041961,-500.0,0.0001452,2]
[334170968,1722807041973,-163.154719,0.0001452,2]
[334170970,1722807041982,-294.2310959,0.00014521,2]
[334170971,1722807041992,-360.29,0.00014616,7]
[334170973,1722807042004,-150.0,0.00014618,2]
[334170974,1722807042015,-5700.4633622,0.00014626,2]
[334170975,1722807042026,-11838.17578419,0.00014657,5]
[334170977,1722807042036,-30142.5828648,0.00014657,2]
[334170978,1722807042046,-2208.63,0.00014662,2]
[334170980,1722807042056,-194.5599409,0.0001469,2]
[334170981,1722807042067,-269.66609186,0.0001469,2]
[334170982,1722807042077,-286.60806988,0.0001469,2]
[334170984,1722807042087,-155.01743864,0.0001469,2]
[334170985,1722807042097,-335.72666735,0.0001469,2]
[334170987,1722807042107,-295.78136793,0.0001469,2]
[334170988,1722807042118,-261.1733593,0.0001469,2]
[334170989,1722807042127,-348.25028875,0.00014721,2]
[334170991,1722807042138,-1020.414,0.00014758,2]
[334170992,1722807042147,-500.0,0.00014794,2]
[334170994,1722807042157,-878.97,0.00014794,2]
[334170995,1722807042167,-500.0,0.00014794,2]
[334170996,1722807042177,-495.6,0.00014794,2]
[334170998,1722807042185,-500.0,0.00014794,2]
[334170999,1722807042196,-810.38,0.00014794,2]
[334171001,1722807042207,-500.0,0.00014794,2]
[334171002,1722807042216,-1808.78,0.00014794,2]
[334171003,1722807042225,-861.84,0.00014794,2]
[334171005,1722807042235,-641.77,0.00014794,2]
[334171006,1722807042245,-500.0,0.00014794,2]
[334171007,1722807042254,-500.0,0.00014794,2]
[334171009,1722807042263,-500.0,0.00014794,2]
[334171010,1722807042273,-572.52,0.00014794,2]
[334171011,1722807042282,-500.0,0.00014794,2]
[334171013,1722807042292,-1361.53,0.00014794,2]
[334171014,1722807042301,-635.88871216,0.00014794,2]
[334171016,1722807042311,-500.0,0.00014794,2]
[334171017,1722807042321,-500.0,0.00014794,2]
[334171018,1722807042332,-2284.99,0.00014794,2]
[334171020,1722807042342,-434.15,0.00014794,2]
[334171021,1722807042352,-200.0,0.00014795,2]
[334171023,1722807042362,-270.89378798,0.00014869,2]
[334171024,1722807042373,-1951.93808271,0.00014911,2]
[334171025,1722807042383,-200.0,0.00014932,2]
[334171027,1722807042393,-2208.63,0.00014998,2]
[334171028,1722807042403,-214.79869434,0.00015,2]
[334171030,1722807042413,-30142.5828648,0.00015011,2]
[334171031,1722807042425,-151.0,0.00015011,2]
[334171032,1722807042435,-182.598969,0.00015011,2]
[334171035,1722807042444,-182.598969,0.00015011,2]
[334171037,1722807042454,-151.0,0.00015011,2]
[334171039,1722807042463,-163.154719,0.00015011,2]
[334171041,1722807042474,-163.154719,0.00015011,2]
[334171042,1722807042484,-294.851657,0.00015021,2]
[334171044,1722807042496,-294.851657,0.00015021,2]
[334171045,1722807042506,-801.489638,0.00015021,2]
[334171046,1722807042516,-801.489638,0.00015021,2]
[334171048,1722807042525,-186.474617,0.00015021,2]
[334171051,1722807042534,-186.474617,0.00015021,2]
[334171054,1722807042544,-1630.23174338,0.00015032,2]
[334171056,1722807042553,-793.520155,0.00015032,2]
[334171058,1722807042563,-793.520155,0.00015032,2]
[334171061,1722807042572,-151.0,0.00015032,2]
[334171063,1722807042582,-151.0,0.00015032,2]
[334171065,1722807042592,-229.475619,0.00015032,2]
[334171068,1722807042602,-2208.63,0.00015067,2]
[334171070,1722807042611,-500.0,0.00015068,2]
[334171072,1722807042621,-878.97,0.00015068,2]
[334171075,1722807042631,-500.0,0.00015068,2]
[334171077,1722807042641,-226.35,0.00015068,2]
[334171079,1722807042651,-810.38,0.00015068,2]
[334171081,1722807042661,-479.83,0.00015068,2]
[334171083,1722807042672,-1808.78,0.00015068,2]
[334171084,1722807042682,-861.84,0.00015068,2]
[334171086,1722807042692,-641.77,0.00015068,2]
[334171088,1722807042702,-499.84,0.00015068,2]
[334171090,1722807042713,-500.0,0.00015068,2]
[334171092,1722807042722,-500.0,0.00015068,2]
[334171094,1722807042733,-572.52,0.00015068,2]
[334171096,1722807042743,-500.0,0.00015068,2]
[334171098,1722807042754,-1361.53,0.00015068,2]
[334171100,1722807042765,-500.0,0.00015068,2]
[334171102,1722807042774,-500.0,0.00015068,2]
[334171104,1722807042784,-2284.99,0.00015068,2]
[334171106,1722807042794,-620.44522488,0.00015193,2]
[334171108,1722807042803,-294.851657,0.00015342,2]
[334171109,1722807042812,-294.851657,0.00015342,2]
[334171110,1722807042822,-500.0,0.00015342,2]
[334171111,1722807042832,-801.489638,0.00015342,2]
[334171112,1722807042841,-801.489638,0.00015342,2]
[334171113,1722807042851,-878.97,0.00015342,2]
[334171114,1722807042861,-186.474617,0.00015342,2]
[334171115,1722807042870,-186.474617,0.00015342,2]
[334171116,1722807042879,-500.0,0.00015342,2]
[334171117,1722807042889,-810.38,0.00015342,2]
[334171118,1722807042898,-1808.78,0.00015342,2]
[334171119,1722807042907,-793.520155,0.00015342,2]
[334171120,1722807042918,-793.520155,0.00015342,2]
[334171121,1722807042930,-861.84,0.00015342,2]
[334171122,1722807042940,-641.77,0.00015342,2]
[334171123,1722807042949,-151.0,0.00015342,2]
[334171124,1722807042958,-151.0,0.00015342,2]
[334171125,1722807042969,-510.62778963,0.00015342,2]
[334171126,1722807042978,-500.0,0.00015342,2]
[334171127,1722807042988,-572.52,0.00015342,2]
[334171128,1722807042998,-500.0,0.00015342,2]
[334171129,1722807043007,-1361.53,0.00015342,2]
[334171130,1722807043016,-500.0,0.00015342,2]
[334171131,1722807043026,-500.0,0.00015342,2]
[334171132,1722807043035,-2284.99,0.00015342,2]
[334171133,1722807043044,-151.0,0.00015423,2]
[334171134,1722807043054,-150.0,0.00015518,2]
[334171135,1722807043064,-2208.63,0.00015596,2]
[334171136,1722807043075,-294.851657,0.00015597,2]
[334171137,1722807043086,-294.851657,0.00015597,2]
[334171138,1722807043096,-801.489638,0.00015597,2]
[334171139,1722807043105,-801.489638,0.00015597,2]
[334171140,1722807043114,-186.474617,0.00015597,2]
[334171141,1722807043123,-186.474617,0.00015597,2]
[334171142,1722807043132,-793.520155,0.00015597,2]
[334171143,1722807043141,-793.520155,0.00015597,2]
[334171144,1722807043151,-151.0,0.00015597,2]
[334171146,1722807043160,-151.0,0.00015597,2]
[334171147,1722807043169,-2208.63,0.00015606,2]
[334171148,1722807043179,-2208.63,0.00015606,2]
[334171149,1722807043188,-2208.63,0.00015606,2]
[334171150,1722807043197,-151.0,0.00015607,2]
[334171151,1722807043207,-294.851657,0.00015607,2]
[334171154,1722807043217,-294.851657,0.00015607,2]
[334171157,1722807043226,-801.489638,0.00015607,2]
[334171160,1722807043235,-801.489638,0.00015607,2]
[334171162,1722807043244,-186.474617,0.00015607,2]
[334171163,1722807043254,-186.474617,0.00015607,2]
[334171164,1722807043263,-182.76193814,0.00015616,2]
[334171166,1722807043272,-878.97,0.00015616,2]
[334171167,1722807043282,-500.0,0.00015616,2]
[334171168,1722807043292,-810.38,0.00015616,2]
[334171169,1722807043302,-1808.78,0.00015616,2]
[334171170,1722807043311,-861.84,0.00015616,2]
[334171172,1722807043320,-641.77,0.00015616,2]
[334171173,1722807043329,-500.0,0.00015616,2]
[334171175,1722807043338,-572.52,0.00015616,2]
[334171176,1722807043347,-500.0,0.00015616,2]
[334171177,1722807043357,-1361.53,0.00015616,2]
[334171179,1722807043366,-170.865764,0.00015616,2]
[334171180,1722807043375,-182.598969,0.00015616,2]
[334171182,1722807043385,-182.598969,0.00015616,2]
[334171183,1722807043394,-500.0,0.00015616,2]
[334171184,1722807043403,-151.0,0.00015616,2]
[334171185,1722807043412,-500.0,0.00015616,2]
[334171186,1722807043421,-2284.99,0.00015616,2]
[334171187,1722807043432,-163.154719,0.00015616,2]
[334171188,1722807043442,-163.154719,0.00015616,2]
[334171189,1722807043452,-2208.63,0.00015694,2]
[334171190,1722807043461,-2208.63,0.00015696,2]
[334171191,1722807043471,-151.0,0.00015697,2]
[334171192,1722807043481,-2208.63,0.00015704,2]
[334171193,1722807043493,-2208.63,0.00015706,2]
[334171194,1722807043504,-2208.63,0.00015706,2]
[334171195,1722807043515,-2208.63,0.00015706,2]
[334171196,1722807043525,-2208.63,0.00015706,2]
[334171197,1722807043535,-2208.63,0.00015706,2]
[334171198,1722807043545,-2208.63,0.00015706,2]
[334171199,1722807043556,-2208.66350652,0.00015706,2]
[334171200,1722807043566,-6412.23039952,0.00015707,5]
[334171201,1722807043576,-57943.02607142,0.00015707,2]
[334171202,1722807043845,-500.0,0.00013972,2]
[334171203,1722807043857,-500.0,0.00014246,2]
[334171204,1722807043867,-169340.19343068,0.00015707,2]
[334171205,1722807043876,-294.851657,0.00015707,2]
[334171206,1722807043886,-294.851657,0.00015707,2]
[334171208,1722807043895,-801.489638,0.00015707,2]
[334171211,1722807043906,-801.489638,0.00015707,2]
[334171213,1722807043917,-186.474617,0.00015707,2]
[334171215,1722807043933,-186.474617,0.00015707,2]
[334171217,1722807043944,-793.520155,0.00015707,2]
[334171219,1722807043956,-793.520155,0.00015707,2]
[334171222,1722807043969,-151.0,0.00015707,2]
[334171224,1722807043979,-151.0,0.00015707,2]
[334171226,1722807043989,-182.598969,0.00015707,2]
[334171228,1722807044001,-182.598969,0.00015707,2]
[334171230,1722807044012,-151.0,0.00015707,2]
[334171232,1722807044022,-163.154719,0.00015707,2]
[334171234,1722807044033,-163.154719,0.00015707,2]
[334171236,1722807044043,-1108.06897215,0.00015708,2]
[334171238,1722807044054,-1794.47294319,0.00015708,2]
[334171240,1722807044065,-1763.34953629,0.00015708,2]
[334171242,1722807044075,-3087.44790236,0.00015708,2]
[334171244,1722807044085,-1438.19153297,0.00015708,2]
[334171246,1722807044095,-1991.50486571,0.00015708,2]
[334171248,1722807044105,-7001.07154863,0.00015708,2]
[334171250,1722807044114,-7774.59967491,0.00015708,2]
[334171252,1722807044124,-1162.72829906,0.00015708,2]
[334171254,1722807044133,-2278.01854997,0.00015708,3]
[334171256,1722807044145,-2138.98947464,0.00015708,2]
[334171258,1722807044156,-9641.65829969,0.00015708,2]
[334171260,1722807044166,-2124.35920477,0.00015708,2]
[334171262,1722807044178,-2162.43676373,0.00015708,2]
[334171264,1722807044189,-1610.56614984,0.00015708,2]
[334171266,1722807044199,-1500.0,0.00015708,2]
[334171269,1722807044209,-20757.81316463,0.00015708,2]
[334171271,1722807044219,-294.851657,0.00015708,2]
[334171273,1722807044230,-294.851657,0.00015708,2]
[334171275,1722807044241,-801.489638,0.00015708,2]
[334171277,1722807044251,-801.489638,0.00015708,2]
[334171279,1722807044261,-186.474617,0.00015708,2]
[334171281,1722807044270,-186.474617,0.00015708,2]
[334171283,1722807044280,-793.520155,0.00015708,2]
[334171285,1722807044289,-793.520155,0.00015708,2]
[334171287,1722807044298,-151.0,0.00015708,2]
[334171289,1722807044308,-164.244166,0.00015708,2]
[334171291,1722807044318,-29718.08740092,0.00015708,2]
[334171293,1722807044327,-1668.36277103,0.00015708,2]
[334171295,1722807044337,-182.598969,0.00015708,2]
[334171297,1722807044346,-182.598969,0.00015708,2]
[334171299,1722807044356,-151.0,0.00015708,2]
[334171301,1722807044366,-163.154719,0.00015708,2]
[334171303,1722807044376,-163.154719,0.00015708,2]
[334171305,1722807044386,-35010.17630372,0.00015709,2]
[334171308,1722807044396,-21685.76491941,0.00015709,2]
[334171326,1722807044562,-41516.15908212,0.00015709,2]
[334171328,1722807044574,-2230.87793408,0.00015709,2]
[334171334,1722807044623,-151.0,0.00013962,2]
[334171337,1722807044634,-110.80698573,0.00014246,2]
[334171339,1722807044647,-40.19301427,0.00014246,2]
[334171341,1722807044658,-151.0,0.0001452,2]
[334171343,1722807044668,-353.18806839,0.00015518,2]
[334171346,1722807044680,-2073.353523,0.00015518,2]
[334171552,1722807046528,-273.37336231,9.9e-05,2]
[334171555,1722807046542,-770.05,0.00010959,2]
[334171557,1722807046555,-585.98,0.00013698,2]
[334171560,1722807046569,-585.98,0.00013972,2]
[334171562,1722807046582,-585.98,0.00014246,2]
[334171565,1722807046595,-585.98,0.0001452,2]
[334171567,1722807046611,-773.45840861,0.00015518,2]
[334171570,1722807046625,-26710.0606123,0.00015709,2]
[334171572,1722807046637,-42338.60479892,0.00015709,2]
[334171574,1722807046649,-294.851657,0.00015709,2]
[334171576,1722807046661,-294.85166375,0.00015709,2]
[334171579,1722807046674,-801.489638,0.00015709,2]
[334171581,1722807046687,-801.48963712,0.00015709,2]
[334171583,1722807046702,-186.474617,0.00015709,2]
[334171586,1722807046715,-186.474617,0.00015709,2]
[334171588,1722807046729,-186.474617,0.00015709,2]
[334171590,1722807046742,-186.474609,0.00015709,2]
[334171593,1722807046756,-793.520155,0.00015709,2]
[334171595,1722807046768,-793.520155,0.00015709,2]
[334171597,1722807046777,-793.520155,0.00015709,2]
[334171599,1722807046788,-793.520155,0.00015709,2]
[334171601,1722807046800,-151.0,0.00015709,2]
[334171603,1722807046810,-151.0,0.00015709,2]
[334171605,1722807046822,-182.598969,0.00015709,2]
[334171607,1722807046835,-182.598969,0.00015709,2]
[334171610,1722807046848,-182.598969,0.00015709,2]
[334171612,1722807046863,-182.598969,0.00015709,2]
[334171615,1722807046876,-301.518256,0.00015709,2]
[334171617,1722807046890,-163.154719,0.00015709,2]
[334171620,1722807046904,-163.154719,0.00015709,2]
[334171622,1722807046916,-163.154719,0.00015709,2]
[334171624,1722807046932,-163.154719,0.00015709,2]
[334171627,1722807046945,-532.14086008,0.0001571,2]
[334171629,1722807046959,-266.6760068,0.0001571,2]
[334171632,1722807046973,-1060.99846949,0.0001571,2]
[334171634,1722807046984,-279.26483013,0.0001571,2]
[334171636,1722807046995,-664.23911189,0.0001571,2]
[334171638,1722807047009,-309.41213003,0.00015712,2]
[334171641,1722807047022,-156.03171089,0.00015712,2]
[334171643,1722807047035,-154.77557542,0.00015712,2]
[334171645,1722807047047,-196.46943428,0.00015712,2]
[334171648,1722807047060,-603.79164827,0.00015712,2]
[334171650,1722807047072,-198.67529717,0.00015712,2]
[334171652,1722807047083,-342.05014288,0.00015744,2]
[334171654,1722807047093,-163.06705816,0.00015744,2]
[334171656,1722807047104,-334.98912672,0.00015744,2]
[334171659,1722807047117,-290.3896961,0.00015744,2]
[334171661,1722807047130,-600.8534117,0.00015744,2]
[334171663,1722807047141,-334.98912672,0.00015744,2]
[334171665,1722807047152,-180.977267,0.00015744,2]
[334171668,1722807047164,-156.73199194,0.00015746,2]
[334171670,1722807047174,-568.56884199,0.00015746,2]
[334171672,1722807047185,-568.56884199,0.00015746,2]
[334171674,1722807047196,-779.66389887,0.00015746,2]
[334171676,1722807047206,-160.1642143,0.00015751,2]
[334171678,1722807047217,-200.0,0.00015773,2]
[334171681,1722807047227,-409.25,0.000158,2]
[334171683,1722807047238,-412.94081029,0.00015851,2]
[334171685,1722807047250,-240.80307792,0.00015851,2]
[334171687,1722807047261,-793.520155,0.00015888,2]
[334171689,1722807047272,-793.520164,0.00015888,2]
[334171691,1722807047283,-151.0,0.00015888,2]
[334171694,1722807047294,-182.598969,0.00015888,2]
[334171696,1722807047304,-182.598967,0.00015888,2]
[334171698,1722807047315,-163.154719,0.00015888,2]
[334171700,1722807047325,-163.154728,0.00015888,2]
[334171702,1722807047336,-500.0,0.0001589,2]
[334171704,1722807047347,-1808.78,0.0001589,2]
[334171706,1722807047358,-861.84,0.0001589,2]
[334171708,1722807047368,-641.77,0.0001589,2]
[334171711,1722807047379,-500.0,0.0001589,2]
[334171713,1722807047390,-572.52,0.0001589,2]
[334171715,1722807047401,-500.0,0.0001589,2]
[334171717,1722807047411,-1361.53,0.0001589,2]
[334171719,1722807047422,-500.0,0.0001589,2]
[334171721,1722807047433,-500.0,0.0001589,2]
[334171724,1722807047445,-2284.99,0.0001589,2]
[334171726,1722807047456,-153.0,0.00015899,2]
[334171728,1722807047467,-154.77557542,0.00015952,2]
[334171730,1722807047477,-209.86849569,0.00015952,2]
[334171732,1722807047488,-209.86849569,0.00015952,2]
[334171734,1722807047499,-620.02226124,0.00015953,2]
[334171736,1722807047510,-506.48190828,0.00015954,2]
[334171739,1722807047521,-1341.39899781,0.00015998,6]
[334171741,1722807047531,-4000.0,0.00016,2]
[334171743,1722807047543,-4000.0,0.00016,2]
[334171745,1722807047553,-2268.10215835,0.00016,2]
[334171748,1722807047567,-1731.89784165,0.00016,2]
[334171750,1722807047578,-4000.0,0.00016,2]
[334171752,1722807047589,-4000.0,0.00016,2]
[334171754,1722807047599,-3252.51175835,0.00016,2]
[334174173,1722807954370,200.6439536,8.947e-05,2]
[334174174,1722808077851,917.62260831,8.947e-05,2]
[334174175,1722808090919,479.70011217,8.947e-05,2]
[334174311,1722808238230,-599.99866433,9.127e-05,2]
[334174312,1722808238240,-599.99866433,9.227e-05,2]
[334174313,1722808238250,-250.0,9.612e-05,2]
[334174314,1722808238259,-250.0,9.638e-05,2]
[334174315,1722808238268,-250.0,9.665e-05,2]
[334174316,1722808238278,-250.0,9.691e-05,2]
[334174317,1722808238287,-250.0,9.718e-05,2]
[334174318,1722808238297,-250.0,9.744e-05,2]
[334174319,1722808238307,-250.0,9.77e-05,2]
[334174320,1722808238317,-250.0,9.797e-05,2]
[334174321,1722808238327,-250.0,9.823e-05,2]
[334174322,1722808238338,-250.0,9.849e-05,2]
[334174323,1722808238351,-250.0,9.876e-05,2]
[334174324,1722808238360,-250.0,9.902e-05,2]
[334174325,1722808238370,-250.0,9.928e-05,2]
[334174326,1722808238379,-250.0,9.955e-05,2]
[334174327,1722808238390,-250.0,9.981e-05,2]
[334174328,1722808238400,-300.0,9.998e-05,2]
[334174329,1722808238410,-300.0,9.998e-05,2]
[334174330,1722808238421,-180.00267134,9.999e-05,2]
[334174391,1722808239070,-352.13818874,9.999e-05,2]